Cogmind - Beta 10.2 --- EXPLORER MODE // 2022.01.14 @ 12:03:34 Player: xerxia Result: Self-destructed Performance ------------- Evolutions (1) 500 Regions Visited (2) 400 Robots Destroyed (3) 15 Value Destroyed (113) 113 Prototype IDs (2) 40 Alien Tech Used (0) 0 Bonus (200) 200 TOTAL SCORE: 1268 Bonus ------- Pacifist 200 Cogmind --------- Core Integrity 313/400 Matter 287/300 Energy 305/305 System Corruption 0% Temperature Cool (0) Movement Flying (405) Ox5 Location -9/Materials Parts ------- > --- POWER (2) -------- Light Ion Engine Heavy Ion Engine > --- PROPULSION (4) --- Light Treads Improved Flight Unit > --- UTILITY (2) ------ Medium Storage Unit Large Storage Unit > --- WEAPON (2) ------- Light Assault Rifle > --- INVENTORY (14) --- Ion Engine Light Ion Engine Light Ion Engine Light Ion Engine Improved Ion Engine Heat Sink Heat Sink Cooling System Weight Redist. System Propulsion Shielding Light Armor Plating Rocket Launcher Peak State ------------ > --- POWER ------------ Light Ion Engine Heavy Ion Engine > --- PROPULSION ------- Light Treads Light Treads Improved Flight Unit > --- UTILITY ---------- Medium Storage Unit Large Storage Unit > --- WEAPON ----------- EM Pulse Gun Light Assault Rifle > --- INVENTORY -------- Ion Engine Light Ion Engine Light Ion Engine Light Ion Engine Improved Ion Engine Heat Sink Heat Sink Cooling System Weight Redist. System Propulsion Shielding Light Armor Plating Rocket Launcher [Rating: 14] Favorites ----------- Power Light Ion Engine Engine Light Ion Engine Propulsion Light Treads Treads Light Treads Flight Unit Improved Flight Unit Utility Medium Storage Unit Storage Medium Storage Unit Protection Light Armor Plating Weapon EM Pulse Gun Energy Gun EM Pulse Gun Ballistic Gun Light Assault Rifle Build | -11 -10 -9 ------- Run | Scr Mat Mat Slots Evolved 3 | . 1 2 Power 1 | . 1 . Propulsion 2 | . . 2 Utility . | . . . Weapon . | . . . Parts Attached 14 | 7 3 4 Power 4 | 1 1 2 Engine 4 | 1 1 2 Core . | . . . Reactor . | . . . Propulsion 3 | 2 . 1 Treads 2 | 2 . . Leg . | . . . Wheel . | . . . Hover . | . . . Flight 1 | . . 1 Utility 4 | 2 2 . Device . | . . . Storage 3 | 1 2 . Processor . | . . . Hackware . | . . . Protection 1 | 1 . . Artifact . | . . . Weapon 3 | 2 . 1 Energy Gun 1 | 1 . . Energy Cannon . | . . . Ballistic Gun 2 | 1 . 1 Ballistic Cannon . | . . . Launcher . | . . . Special Weapon . | . . . Impact Weapon . | . . . Slashing Weapon . | . . . Piercing Weapon . | . . . Special Melee Weapon . | . . . Unidentified Prototypes 2 | . . 2 Parts Lost 3 | . . 3 Power 1 | . . 1 Propulsion 1 | . . 1 Utility . | . . . Weapon 1 | . . 1 Highest Loss Streak 2 | . . 2 Average Slot Usage (%) 86 | . 100 80 Engine 20 | . 25 19 Treads 21 | . 25 20 Flight 1 | . . 1 Storage 21 | . 24 20 Energy Gun 10 | . 12 10 Ballistic Gun 10 | . 12 10 Naked Turns . | . . . Heaviest Build 35 | 19 35 35 Greatest Support 40 | 40 40 40 Greatest Overweight (x) 5 | . . 5 Average Overweight (x) . | . . . Largest Inventory Capacity 14 | 8 14 14 Average Capacity 12 | 7 13 14 Most Carried 14 | 6 3 14 Average Carried 6 | 2 1 9 Final Capacity 14 | 8 14 14 Final Carried 12 | 2 2 12 Class Distribution -------------------- 100% | Hacker-Mutant Dominant Class ---------------- Hacker-Mutant | -10/Materials Hacker-Mutant | -9/Materials Resources | -11 -10 -9 ----------- Run | Scr Mat Mat Matter Collected 312 | 245 35 32 Remotely . | . . . Salvage Created 139 | . . 139 Parts 7 | . . 7 Haulers Intercepted . | . . . Recyclers Shooed . | . . . Parts Field Recycled . | . . . Retrieved Matter . | . . . Parts Self-Destructed . | . . . Prevented . | . . . Kills | -11 -10 -9 ------- Run | Scr Mat Mat Combat Hostiles Destroyed 3 | . . 3 Guns 3 | . . 3 Classes Destroyed 2 | . . 2 Grunt 2 | . . 2 Sentry 1 | . . 1 Best Kill Streak 2 | . . 2 Combat Bots Only 2 | . . 2 Max Kills in Single Turn 1 | . . 1 Gunslinging . | . . . Exploded . | . . . Melee . | . . . Uniques/NPCs Destroyed . | . . . Combat | -11 -10 -9 -------- Run | Scr Mat Mat Damage Taken 565 | . 16 549 Core 87 | . . 87 Absorbed by Shields . | . . . Core Remaining (%) 100 | 100 100 . Volleys Fired 12 | . . 12 Largest 2 | . . 2 Hottest 60 | . . 60 Shots Fired 24 | . . 24 Gun 24 | . . 24 Cannon . | . . . Launcher . | . . . Special . | . . . Kinetic 12 | . . 12 Thermal . | . . . Explosive . | . . . Electromagnetic 12 | . . 12 Robot Hit Streak 24 | . . 24 Robot Miss Streak . | . . . Penetration Max . | . . . Secondary Targets 1 | . . 1 Max Gunslinging Chain 1 | . . 1 Shots Hit Robots 24 | . . 24 Core Hits 5 | . . 5 Critical Hits . | . . . Critical Kills . | . . . Critical Parts Destroyed . | . . . Melee Attacks . | . . . Impact . | . . . Slashing . | . . . Piercing . | . . . Sneak Attacks . | . . . Combat Hostiles . | . . . Follow-up Attacks . | . . . Damage Inflicted 113 | . . 113 Guns 107 | . . 107 Cannons . | . . . Explosions . | . . . Melee . | . . . Ramming 6 | . . 6 Kinetic 42 | . . 42 Thermal . | . . . Explosive . | . . . Electromagnetic 65 | . . 65 Impact . | . . . Slashing . | . . . Piercing . | . . . Highest Corruption . | . . . Average Corruption . | . . . Corruption Purged . | . . . Overload Shots . | . . . Overflow Damage . | . . . Projectiles . | . . . Explosions . | . . . Melee . | . . . Knockbacks . | . . . Impact . | . . . Kinetic . | . . . Secondary . | . . . Self-Inflicted Damage 3 | . . 3 Shots . | . . . Rammed 3 | . . 3 Targets Rammed 3 | . . 3 Kicked . | . . . Crushed . | . . . Highest Temperature 132 | . . 132 Average Temperature 58 | . . 58 Received Heat Transfer 375 | . . 375 Siege Activations . | . . . Robots Corrupted . | . . . Combat Hostiles . | . . . Parts Fried . | . . . Impact Corruptions . | . . . Robots Melted . | . . . Combat Hostiles . | . . . Parts Melted . | . . . Heat Transferred . | . . . Parts Sabotaged . | . . . Parts Stolen . | . . . Parts Stripped . | . . . Power Chain Reactions . | . . . Missiles Intercepted . | . . . Alert | -11 -10 -9 ------- Run | Scr Mat Mat Peak Influence 130 | . . 130 Initial . | . . . Average 53 | . . 84 Maximum Alert Level . | . . . Low Security (%) 100 | 100 100 100 Level 1 . | . . . Level 2 . | . . . Level 3 . | . . . Level 4 . | . . . Level 5 . | . . . High Security . | . . . Max Security . | . . . Squads Dispatched . | . . . Investigation . | . . . Extermination . | . . . Reinforcement . | . . . Assault . | . . . Garrison . | . . . Intercept . | . . . Construction Impeded . | . . . Haulers Reinforced . | . . . Stealth | -11 -10 -9 --------- Run | Scr Mat Mat Distress Signals 1 | . . 1 Communications Jammed . | . . . Distress Signals . | . . . Times Spotted 11 | . . 11 Peak Tracking Total 6 | . . 6 Tactical Retreats 1 | . . 1 Traps | -11 -10 -9 ------- Run | Scr Mat Mat Traps Triggered 2 | . 1 1 Indirectly . | . . . Trap Hack Attempts . | . . . Triggered . | . . . Disarmed . | . . . Reprogrammed . | . . . Reused . | . . . Traps Extracted . | . . . Installed . | . . . Triggered . | . . . Machines | -11 -10 -9 ---------- Run | Scr Mat Mat Machines Disabled . | . . . Max in Single Turn . | . . . Machines Sabotaged . | . . . Garrisons Compromised . | . . . Overloaded Fab Kills . | . . . Fab Network Shutdowns . | . . . Hacking | -11 -10 -9 --------- Run | Scr Mat Mat Machines Accessed . | . . . Terminals . | . . . Fabricators . | . . . Repair Stations . | . . . Recycling Units . | . . . Scanalyzers . | . . . Garrison Access . | . . . Total Hacks . | . . . Successful . | . . . Failed . | . . . Catastrophic . | . . . Database Lockouts . | . . . Manual . | . . . Terminals . | . . . Fabricators . | . . . Repair Stations . | . . . Recycling Units . | . . . Scanalyzers . | . . . Garrison Access . | . . . Terminal Hacks . | . . . Fabricator Hacks . | . . . Repair Station Hacks . | . . . Recycling Unit Hacks . | . . . Scanalyzer . | . . . Garrison Access Hacks . | . . . Unauthorized Hacks . | . . . Terminals . | . . . Fabricators . | . . . Repair Stations . | . . . Recycling Units . | . . . Scanalyzers . | . . . Garrison Access . | . . . Data Cores Recovered . | . . . Used . | . . . Hacking Detections . | . . . Full Trace Events . | . . . Feedback Events . | . . . Feedback Blocked . | . . . Robot Schematics Acquired . | . . . Robots Built . | . . . Matter . | . . . Time . | . . . Total Robot Build Rating . | . . . Part Schematics Acquired . | . . . Parts Built . | . . . Matter . | . . . Time . | . . . Total Part Build Rating . | . . . Parts Repaired . | . . . Time . | . . . Parts Recycled . | . . . Recycled Matter . | . . . Retrieved Matter . | . . . Retrieved Components . | . . . Parts Scanalyzed . | . . . Part Schematics Acquired . | . . . Parts Damaged . | . . . Bothacking | -11 -10 -9 ------------ Run | Scr Mat Mat Used RIF Installer . | . . . Robots Hacked . | . . . Non-combat . | . . . Combat . | . . . Robot Hacks Applied . | . . . Relay Couplers Released . | . . . Robots Rewired . | . . . Allies Hacked . | . . . Hacks Repelled . | . . . Allies | -11 -10 -9 -------- Run | Scr Mat Mat Total Allies . | . . . Largest Group . | . . . Highest-Rated Group . | . . . Highest-Rated Ally . | . . . Total Orders . | . . . Ally Attacks . | . . . Total Damage . | . . . Kills . | . . . Allies Corrupted . | . . . Allies Melted . | . . . Intel | -11 -10 -9 ------- Run | Scr Mat Mat Robot Analysis Total . | . . . Derelict Logs Recovered . | . . . Drone Launches . | . . . Drone Recoveries . | . . . Exploration | -11 -10 -9 ------------- Run | Scr Mat Mat Turns Passed 668 | 82 159 427 Spaces Moved 339 | 46 96 197 Core 6 | 6 . . Treads 320 | 40 96 184 Legs . | . . . Wheels . | . . . Hover . | . . . Flight 13 | . . 13 Fastest Speed 50 | 50 160 160 Average Speed 166 | 145 160 175 Slowest Speed 425 | 160 160 425 Overloaded Moves . | . . . Propulsion Burnouts . | . . . Robots Hopped . | . . . Cave-ins Triggered . | . . . Exploration Rate (%) 17 | 4 26 21 Regions Visited 2 Branch Regions . Pre-discovered Areas . | . . . Known Exits Taken 2 | 1 1 . Unknown Exits Taken . | . . . Scrap Searched . | . . . Spaces Dug . | . . . Terrain Destroyed . | . . . Melee . | . . . Projectile . | . . . AOE . | . . . Terrain Rammed . | . . . Walls Destroyed . | . . . Machines Disabled . | . . . Actions | -11 -10 -9 --------- Run | Scr Mat Mat Total 409 | 61 102 246 Wait 16 | . . 16 Move 337 | 45 95 197 Hop . | . . . Pick Up 25 | 9 2 14 Fast Attach . | . . . Attach 13 | 7 2 4 Detach 1 | . 1 . Swap 1 | . 1 . Drop 1 | . 1 . Fire 12 | . . 12 Melee . | . . . Ram 3 | . . 3 Kick . | . . . Crush . | . . . Escape Stasis . | . . . Rewire . | . . . Trap . | . . . Miscellaneous . | . . . Route ------- -11/Scrapyard -10/Materials -9/Materials (discovered 1 exit: *Mat) History --------- Turn | Location | Event 26 | -11/Scrapyard | Identified exit to Materials 26 | -11/Scrapyard | Discovered exit to Materials (range 14) 83 | -11/Scrapyard | Entered Materials 83 | -10/Materials | Evolved 1 slot: Power x1 218 | -10/Materials | Identified exit to Materials 218 | -10/Materials | Discovered exit to Materials (range 15) 242 | -10/Materials | Entered another Materials area 242 | -9/Materials | Evolved 2 slots: Propulsion x2 317 | -9/Materials | Build established: Hacker-Mutant 591 | -9/Materials | Identified exit to Materials 591 | -9/Materials | Discovered exit to Materials (range 16) 669 | -9/Materials | Self-destructed Last Messages --------------- 00593_ K-01 Serf cleans the Hadron Collector. 00597_ K-01 Serf collects debris. 00600_ Acquired Prototype Flight Unit. 00601_ Identified Imp. Flight Unit. 00604_ K-01 Serf collects debris. 00622_ K-01 Serf cleans the Fusion Modulator. 00624_ W-16 Scout distress signal alerts nearby ally. 00627_ Ion Engine destroyed. 00629_ K-01 Serf cleans the Hadron Collector. 00632_ G-34 Mercenary destroyed. 00653_ Acquired Prototype Engine. 00654_ Identified Hvy. Ion Engine. 00655_ Slammed into G-34 Mercenary. 00660_ Destabilizing: Core damaged (-8). 00664_ EM Pulse Gun destroyed. 00665_ Slammed into G-34 Mercenary. 00665_ Lgt. Assault Rifle permanently disabled. 00665_ Destabilizing: Short circuit. 00668_ Nuclear Reactor explodes. 00668_ Lgt. Treads destroyed. Map ----- +----------------------------------------------------+ | | | | | | | | | | | | | | | | | | | | | | | | | | | | | | | | | | | ?????????????????????????????????????????????????? | | ?????????????????????????????????????????????????? | | ?????????????????????###########?????????????????? | | ?????????????????????# # #?????????????????? | | ????????????????????## ##????????????????? | | ????????????????????# gg #????????????????? | | ????????????????????# < #????????????????? | | ????????????????????# #????????????????? | | ????????????????????# g@ #????????????????? | | ????????????????????# #????????????????? | | ????????????????????# ##????????????????? | | ????????????????????# #?????????????????? | | ????????????????????# ###?????????????????? | | ????????????????????# ######???????????????????? | | ????????????????????# *#????????????????????????? | | ????????????######### !%#############????????????? | | ???????? = ?????????? | | ???????? ?????????? | | ???????? """ """ """ ?????????? | | ???????? """ """ """ ######## ??????????? | | ???????????!?? """ """ """ #??????????????????? | | ???????? ]![ """ """ """ #??????????????????? | | ???????? ]! #??????????????????? | | ???????? #??????????????????? | | ???????? """ """ """ #??????????????????? | | ??????????? " """ """ """ #??????????????????? | | ???????????R" """ """ """ #####+##???????????? | | ???????? """ """ ??????????? | | ??????? ??????????? | | ??????? ??????????? | | ??????? ###+#########???????????? | | ?????????#############+####? ??????????????????? | | ?????????????????# #??" ????????????????? | +----------------------------------------------------+ Best States ------------- Heat Dissipation 28 Energy Generation 19 Energy Capacity 305 Matter Stores 300 Matter Capacity 300 Sight Range 16 Terrain Scan Density 10 Armor Coverage 150 Resistance: KI 35 Resistance: TH 35 Resistance: EX 35 Resistance: EM 35 Resistance: I 35 Resistance: S 35 Resistance: P 35 Evasion (%) 40 Recoil Reduction 2 Offensive Hacking 20 Item Schematics ----------------- None Robot Schematics ------------------ None Fabricated ------------ Nothing Alien Tech Used ----------------- None Achievements -------------- None Challenges ------------ None Game ------ Seed SegregatorGuidanceThruster Manual? 0 Play Time 00:07:41 Cumulative 33.5 hours Start 2022.01.14 @ 11:57:40 End 2022.01.14 @ 12:03:34 Sessions 1 Manual Loads 0 Difficulty Explorer Special Mode None Game No. 35 Rogue 1 Adventurer 0 Explorer 34 Win Type - Total 2 Types 2/0/0/0/0/0/0/0/0 Lore% 7 Gallery% 38 Achievement% 28 Wizard Run 0 Options --------- ASCII 0 Keyboard 0 Movement Numpad Keybinds 0 Fullscreen 1 Font 12/Smallcaps Map View 83x54 Tactical HUD 1 Map Filters NONE Filters NONE Steam 1 RUN: 4f69b85f-593c-444f-afe7-36b1f0cfc43f